fUSD/lending_fUSD_20260226
["ID","MTS","AMOUNT","RATE_DAILY","PERIOD"]
[406678550,1772069442357,-2000.0,0.00015342,2]
[406678551,1772069442367,-1000.0,0.00015507,2]
[406678552,1772069442377,-20486.55936383,0.00015555,2]
[406678553,1772069442387,-200.0,0.00015647,2]
[406678554,1772069442397,-3829.31180515,0.00015691,2]
[406678555,1772069442407,-284.92532388,0.00015694,2]
[406678556,1772069442417,-471.69,0.00015736,2]
[406678557,1772069442427,-7382.11,0.00015753,2]
[406678558,1772069442436,-471.69,0.00015793,2]
[406678559,1772069442446,-471.7,0.00015794,2]
[406678560,1772069442459,-500.0,0.0001589,2]
[406678561,1772069442469,-2500.0,0.0001589,2]
[406678562,1772069442479,-2500.0,0.0001589,2]
[406678563,1772069442488,-1000.0,0.00015895,2]
[406678564,1772069442499,-180.0,0.000159,2]
[406678565,1772069442509,-150.0,0.000159,2]
[406678566,1772069442519,-150.0,0.000159,2]
[406678567,1772069442528,-161.03271686,0.000159,2]
[406678568,1772069442539,-150.0,0.000159,2]
[406678569,1772069442549,-150.0,0.000159,2]
[406678570,1772069442559,-150.0,0.000159,2]
[406678571,1772069442570,-471.69,0.00016104,2]
[406678572,1772069442584,-7943.91,0.00016116,2]
[406678573,1772069442594,-474.07483601,0.00016227,2]
[406678574,1772069442604,-500.0,0.00016266,2]
[406678575,1772069442614,-500.0,0.00016266,2]
[406678576,1772069442625,-500.0,0.00016266,2]
[406678577,1772069442636,-350.04115682,0.00016266,2]
[406678578,1772069442647,-500.0,0.00016266,2]
[406678579,1772069442660,-693.3919763,0.00016266,2]
[406678580,1772069442673,-500.0,0.00016266,2]
[406678581,1772069442683,-500.0,0.00016266,2]
[406678582,1772069442693,-500.0,0.00016266,2]
[406678583,1772069442702,-500.0,0.00016266,2]
[406678584,1772069442712,-500.0,0.00016266,2]
[406678585,1772069442722,-500.0,0.00016266,2]
[406678586,1772069442734,-500.0,0.00016266,2]
[406678587,1772069442744,-277.35679052,0.00016266,2]
[406678588,1772069442754,-500.0,0.00016266,2]
[406678589,1772069442764,-500.0,0.00016266,2]
[406678590,1772069442773,-500.0,0.00016266,2]
[406678591,1772069442783,-500.0,0.00016266,2]
[406678592,1772069442793,-500.0,0.00016266,2]
[406678593,1772069442802,-500.0,0.00016266,2]
[406678594,1772069442812,-500.0,0.00016266,2]
[406678595,1772069442822,-484.51217363,0.00016266,2]
[406678596,1772069442832,-1000.0,0.00016282,2]
[406678597,1772069442841,-168.69,0.000163,2]
[406678598,1772069442854,-485.0,0.00016319,2]
[406678599,1772069442864,-719.04747942,0.00016321,2]
[406678600,1772069442873,-500.0,0.00016356,2]
[406678601,1772069442883,-500.0,0.00016356,2]
[406678602,1772069442892,-485.0,0.00016361,2]
[406678603,1772069442903,-745.65223616,0.00016376,2]
[406678604,1772069442913,-844.0,0.000164,2]
[406678605,1772069442922,-2843.0,0.000164,2]
[406678606,1772069442932,-160.0,0.000164,2]
[406678607,1772069442942,-844.0,0.000164,2]
[406678608,1772069442951,-4998.88692849,0.00016403,2]
[406678611,1772069442963,-773.2413689,0.00016431,2]
[406678612,1772069442972,-5415.71361339,0.00016435,2]
[406678613,1772069442982,-1034.1,0.00016438,2]
[406678614,1772069442991,-433.231877,0.00016438,2]
[406678615,1772069443000,-433.231877,0.00016438,2]
[406678616,1772069443009,-433.231877,0.00016438,2]
[406678617,1772069443018,-433.231885,0.00016438,2]
[406678618,1772069443027,-500.0,0.00016438,2]
[406678619,1772069443037,-500.0,0.00016438,3]
[406678620,1772069443049,-500.0,0.00016438,4]
[406678621,1772069443059,-500.0,0.00016438,5]
[406678622,1772069443070,-500.0,0.00016438,6]
[406678623,1772069443081,-500.0,0.00016438,7]
[406678624,1772069443090,-500.0,0.00016438,8]
[406678625,1772069443100,-500.0,0.00016438,9]
[406678626,1772069443111,-500.0,0.00016438,10]
[406678627,1772069443121,-500.0,0.00016438,11]
[406678628,1772069443130,-500.0,0.00016438,12]
[406678629,1772069443140,-500.0,0.00016438,13]
[406678630,1772069443150,-500.0,0.00016438,14]
[406678631,1772069443159,-500.0,0.00016438,15]
[406678632,1772069443169,-500.0,0.00016438,16]
[406678633,1772069443178,-500.0,0.00016438,17]
[406678634,1772069443188,-830.0,0.00016438,2]
[406678635,1772069443198,-7382.11,0.00016438,2]
[406678636,1772069443207,-173.256273,0.00016438,2]
[406678637,1772069443217,-151.0,0.00016438,2]
[406678638,1772069443226,-151.0,0.00016438,2]
[406678639,1772069443236,-151.0,0.00016438,2]
[406678640,1772069443245,-151.0,0.00016438,2]
[406678641,1772069443255,-1000.0,0.00016438,2]
[406678642,1772069443264,-228.05,0.00016438,2]
[406678643,1772069443273,-1187.89476674,0.00016438,2]
[406678644,1772069443283,-3000.0,0.00016438,2]
[406678645,1772069443293,-507.0,0.00016476,2]
[406678646,1772069443303,-801.85129955,0.00016486,2]
[406678647,1772069443313,-830.0,0.00016493,2]
[406678648,1772069443323,-173.88,0.00016511,2]
[406678649,1772069443333,-507.0,0.00016514,2]
[406678650,1772069443343,-507.0,0.00016527,2]
[406678651,1772069443352,-831.51979763,0.00016541,2]
[406678652,1772069443363,-830.0,0.00016548,2]
[406678653,1772069443373,-501.0,0.0001656,3]
[406678654,1772069443383,-485.0,0.00016576,2]
[406678655,1772069443393,-173.88,0.00016584,2]
[406678656,1772069443403,-862.28603014,0.00016596,2]
[406678658,1772069443412,-830.0,0.00016602,2]
[406678660,1772069443422,-485.0,0.0001661,2]
[406678662,1772069443439,-471.70854388,0.00016649,2]
[406678663,1772069443450,-830.0,0.00016657,2]
[406678665,1772069443460,-376.71,0.00016658,2]
[406678667,1772069443470,-507.0,0.00016661,2]
[406678669,1772069443480,-1000.0,0.0001667,2]
[406678670,1772069443489,-188.0,0.00016683,2]
[406678671,1772069443499,-830.0,0.00016712,2]
[406678672,1772069443509,-1034.1,0.00016712,2]
[406678673,1772069443519,-1000.0,0.00016712,2]
[406678674,1772069443529,-167.0,0.00016712,2]
[406678675,1772069443539,-1449.0,0.0001672,2]
[406678676,1772069443549,-844.0,0.0001672,2]
[406678677,1772069443559,-20486.55936383,0.00016728,2]
[406678678,1772069443569,-507.0,0.00016736,2]
[406678679,1772069443581,-282.618216,0.00016737,2]
[406678680,1772069443591,-282.618216,0.00016737,2]
[406678681,1772069443601,-282.618216,0.00016737,2]
[406678682,1772069443611,-282.618208,0.00016737,2]
[406678683,1772069443622,-376.71,0.00016738,2]
[406678684,1772069443632,-500.0,0.00016763,2]
[406678685,1772069443642,-830.0,0.00016767,2]
[406678686,1772069443654,-2544.97646896,0.00016795,2]
[406678687,1772069444143,-535.13051276,0.00016795,2]
[406678688,1772069444154,-432.12817201,0.00016795,2]
[406678689,1772069444169,-317.07665142,0.00016795,2]
[406678690,1772069444179,-507.0,0.00016811,2]
[406678691,1772069444188,-287.61899177,0.00016814,2]
[406678692,1772069444198,-567.80950492,0.00016822,2]
[406678693,1772069444209,-262.19049508,0.00016822,2]
[406678694,1772069444218,-168.0,0.00016836,2]
[406678695,1772069444228,-507.0,0.00016837,2]
[406678696,1772069444237,-830.0,0.00016876,2]
[406678697,1772069444246,-1000.0,0.000169,6]
[406678698,1772069444255,-168.0,0.000169,2]
[406678699,1772069444264,-179.1,0.000169,2]
[406678700,1772069444273,-830.0,0.00016931,2]
[406678701,1772069444283,-678.0,0.0001694,2]
[406678702,1772069444293,-150.0,0.00016943,2]
[406678703,1772069444302,-1296.47,0.00016943,2]
[406678704,1772069444312,-920.0,0.00016943,2]
[406678705,1772069444321,-341.33600083,0.00016943,2]
[406678706,1772069444376,-842.96,0.00013699,2]
[406678707,1772069444385,-538.18582487,0.00016943,2]
[406678708,1772069444412,-438.85032653,0.0001,2]
[406678709,1772069444421,-256.03261706,0.0001,2]
[406678710,1772069444431,-338.0431743,0.00016943,2]
[406678711,1772069444440,-1340.0,0.00016943,2]
[406678712,1772069444449,-637.09,0.00016943,2]
[406678713,1772069444458,-2456.0,0.00016943,2]
[406678714,1772069444468,-376.72467612,0.0001698,2]
[406678715,1772069444478,-830.0,0.00016986,2]
[406678716,1772069444487,-1034.1,0.00016986,2]
[406678717,1772069444497,-1000.0,0.00016986,2]
[406678718,1772069444506,-500.0,0.00016999,18]
[406678719,1772069444516,-500.0,0.00017,7]
[406678720,1772069444526,-500.0,0.00017,7]
[406678721,1772069444536,-500.0,0.00017,7]
[406678722,1772069444545,-500.0,0.00017,7]
[406678723,1772069444555,-162.78,0.00017,7]
[406678724,1772069444566,-115179.50014335,0.00017,2]
[406678725,1772069444579,-300.0,0.00017,2]
[406678726,1772069444588,-151.0,0.00017,2]
[406678727,1772069444598,-500.0,0.00017,2]
[406678728,1772069444609,-364.33297037,0.00017,2]
[406678729,1772069444619,-2239.39256896,0.00017,2]
[406678730,1772069444628,-1014.56,0.00017,2]
[406678731,1772069444637,-150.0,0.00017005,2]
[406678732,1772069444648,-160.0,0.0001704,2]
[406678733,1772069444658,-952.0,0.0001704,2]
[406678734,1772069444667,-830.0,0.00017041,2]
[406678735,1772069444677,-507.0,0.00017042,2]
[406678736,1772069444687,-1000.0,0.00017058,2]
[406678737,1772069444697,-150.0,0.00017064,2]
[406678738,1772069444706,-150.0,0.00017087,2]
[406678739,1772069444715,-678.0,0.00017088,2]
[406678740,1772069444724,-205.69883995,0.00017091,2]
[406678741,1772069444733,-235.08438852,0.00017091,2]
[406678742,1772069444742,-366.9520377,0.00017091,2]
[406678743,1772069444751,-174.11899818,0.00017091,2]
[406678744,1772069444760,-313.10078252,0.00017091,2]
[406678745,1772069444769,-830.0,0.00017096,2]
[406678746,1772069444778,-830.0,0.0001715,2]
[406678747,1772069444788,-1400.0,0.000172,6]
[406678748,1772069444797,-830.0,0.00017205,2]
[406678749,1772069444807,-830.0,0.0001726,2]
[406678750,1772069444818,-1034.1,0.0001726,2]
[406678751,1772069444827,-1193.0,0.0001726,2]
[406678752,1772069444837,-150.0,0.00017263,2]
[406678753,1772069444846,-678.0,0.00017268,2]
[406678754,1772069444855,-11500.0,0.000173,6]
[406678755,1772069444865,-1700.0,0.000173,6]
[406678756,1772069444874,-830.0,0.00017315,2]
[406678757,1772069444884,-350.0,0.00017355,2]
[406678758,1772069444893,-844.0,0.0001736,2]
[406678759,1772069444903,-298.26089446,0.00017362,2]
[406678760,1772069444913,-830.0,0.0001737,2]
[406678761,1772069444923,-169.0,0.00017371,2]
[406678762,1772069444934,-678.0,0.00017382,2]
[406678763,1772069444945,-2300.0,0.000174,6]
[406678764,1772069444955,-200.0,0.000174,6]
[406678765,1772069444965,-300.0,0.000174,6]
[406678766,1772069444976,-678.0,0.00017415,2]
[406678767,1772069444986,-830.0,0.00017424,2]
[406678768,1772069444998,-150.0,0.00017461,2]
[406678769,1772069445010,-830.0,0.00017479,2]
[406678770,1772069445020,-1000.0,0.00017481,2]
[406678771,1772069445029,-150.0,0.00017484,2]
[406678772,1772069445044,-2300.0,0.000175,6]
[406678773,1772069445054,-200.0,0.000175,6]
[406678774,1772069445064,-300.0,0.000175,6]
[406678775,1772069445075,-150.0,0.00017523,2]
[406678776,1772069445084,-150.0,0.00017525,2]
[406678777,1772069445094,-773.40289893,0.00017534,2]
[406678778,1772069445182,-56.59710107,0.00017534,2]
[406678779,1772069445192,-1034.1,0.00017534,2]
[406678780,1772069445202,-830.0,0.00017589,2]
[406678781,1772069445211,-2300.0,0.000176,6]
[406678782,1772069445220,-200.0,0.000176,6]
[406678783,1772069445230,-300.0,0.000176,6]
[406678784,1772069445239,-500.0,0.00017616,2]
[406678785,1772069445248,-500.0,0.00017616,2]
[406678786,1772069445258,-500.0,0.00017616,2]
[406678787,1772069445267,-500.0,0.00017616,2]
[406678788,1772069445277,-500.0,0.00017616,2]
[406678789,1772069445290,-500.0,0.00017616,2]
[406678790,1772069445299,-500.0,0.00017616,2]
[406678791,1772069445309,-500.0,0.00017616,2]
[406678792,1772069445319,-500.0,0.00017616,2]
[406678793,1772069445328,-500.0,0.00017616,2]
[406678794,1772069445338,-500.0,0.00017616,2]
[406678795,1772069445347,-500.0,0.00017616,2]
[406678796,1772069445356,-500.0,0.00017616,2]
[406678797,1772069445365,-500.0,0.00017616,2]
[406678798,1772069445375,-500.0,0.00017616,2]
[406678799,1772069445384,-500.0,0.00017616,2]
[406678800,1772069445393,-500.0,0.00017616,2]
[406678801,1772069445403,-500.0,0.00017616,2]
[406678802,1772069445412,-500.0,0.00017616,2]
[406678803,1772069445422,-500.0,0.00017616,2]
[406678804,1772069445431,-500.0,0.00017616,2]
[406678805,1772069445441,-500.0,0.00017616,2]
[406678806,1772069445451,-500.0,0.00017616,2]
[406678807,1772069445460,-500.0,0.00017616,2]
[406678808,1772069445470,-500.0,0.00017616,2]
[406678809,1772069445479,-500.0,0.00017616,2]
[406678810,1772069445489,-500.0,0.00017616,2]
[406678811,1772069445499,-500.0,0.00017616,2]
[406678812,1772069445508,-500.0,0.00017616,2]
[406678813,1772069445518,-500.0,0.00017616,2]
[406678814,1772069445527,-500.0,0.00017616,2]
[406678815,1772069445539,-500.0,0.00017616,2]
[406678816,1772069445548,-500.0,0.00017616,2]
[406678817,1772069445557,-500.0,0.00017616,2]
[406678818,1772069445567,-500.0,0.00017616,2]
[406678819,1772069445576,-500.0,0.00017616,2]
[406678820,1772069445588,-500.0,0.00017616,2]
[406678821,1772069445598,-500.0,0.00017616,2]
[406678822,1772069445607,-500.0,0.00017616,2]
[406678823,1772069445616,-500.0,0.00017616,2]
[406678824,1772069445627,-500.0,0.00017616,2]
[406678825,1772069445636,-500.0,0.00017616,2]
[406678826,1772069445645,-500.0,0.00017616,2]
[406678827,1772069445656,-500.0,0.00017616,2]
[406678828,1772069445665,-500.0,0.00017616,2]
[406678829,1772069445674,-500.0,0.00017616,2]
[406678830,1772069445683,-427.4416,0.00017616,2]
[406678831,1772069445692,-1725.32718527,0.0001764,2]
[406678832,1772069445701,-830.0,0.00017643,2]
[406678833,1772069445711,-844.0,0.0001768,2]
[406678834,1772069445720,-160.0,0.0001768,2]
[406678835,1772069445729,-2843.0,0.0001768,2]
[406678836,1772069445738,-844.0,0.0001768,2]
[406678837,1772069445747,-846.0,0.00017698,2]
[406678838,1772069445755,-2300.0,0.000177,6]
[406678839,1772069445764,-200.0,0.000177,6]
[406678841,1772069445773,-300.0,0.000177,6]
[406678842,1772069445783,-159.018,0.00017728,2]
[406678843,1772069445792,-1255.871,0.00017735,2]
[406678844,1772069445802,-11087.89263458,0.0001778,2]
[406678845,1772069445811,-2523.0,0.000178,6]
[406678846,1772069445820,-300.0,0.000178,6]
[406678847,1772069445830,-700.0,0.000178,6]
[406678848,1772069445839,-282.0,0.00017808,2]
[406678849,1772069445848,-1034.1,0.00017808,2]
[406678850,1772069445858,-151.0,0.00017808,2]
[406678851,1772069445867,-250.308914,0.00017808,2]
[406678852,1772069445876,-151.0,0.00017808,2]
[406678853,1772069445885,-151.0,0.00017808,2]
[406678854,1772069445895,-500.0,0.00017808,2]
[406678855,1772069445904,-500.0,0.00017808,2]
[406678856,1772069446032,-500.0,0.00017808,2]
[406678857,1772069446042,-500.0,0.00017808,2]
[406678858,1772069446052,-500.0,0.00017808,2]
[406678859,1772069446061,-500.0,0.00017808,2]
[406678860,1772069446071,-500.0,0.00017808,2]
[406678861,1772069446080,-500.0,0.00017808,2]
[406678862,1772069446089,-500.0,0.00017808,2]
[406678863,1772069446098,-500.0,0.00017808,2]
[406678864,1772069446107,-500.0,0.00017808,2]
[406678865,1772069446115,-500.0,0.00017808,2]
[406678866,1772069446125,-500.0,0.00017808,2]
[406678867,1772069446134,-500.0,0.00017808,2]
[406678868,1772069446143,-500.0,0.00017808,2]
[406678869,1772069446152,-500.0,0.00017808,2]
[406678870,1772069446161,-622.72339987,0.00017808,2]
[406678871,1772069446170,-500.0,0.00017808,2]
[406678872,1772069446179,-500.0,0.00017808,2]
[406678873,1772069446188,-500.0,0.00017808,2]
[406678874,1772069446197,-500.0,0.00017808,2]
[406678875,1772069446206,-500.0,0.00017808,2]
[406678876,1772069446215,-500.0,0.00017808,2]
[406678877,1772069446224,-500.0,0.00017808,2]
[406678878,1772069446233,-450.0,0.00017808,2]
[406678879,1772069446242,-500.0,0.00017808,2]
[406678880,1772069446251,-500.0,0.00017808,2]
[406678882,1772069446260,-800.0,0.00017808,2]
[406678883,1772069446269,-810.62472783,0.0001782,10]
[406678885,1772069446279,-420.47972,0.0001782,2]
[406678887,1772069446289,-420.47973,0.0001782,2]
[406678889,1772069446299,-150.0,0.00017825,2]
[406678891,1772069446308,-500.0,0.00017851,2]
[406678893,1772069446317,-200.0,0.00017856,2]
[406678895,1772069446328,-500.0,0.00017863,2]
[406678897,1772069446337,-236.94446631,0.00017876,2]
[406678899,1772069446346,-500.0,0.00017899,2]
[406678901,1772069446355,-601.0,0.00017899,2]
[406678903,1772069446365,-500.0,0.00017899,19]
[406678905,1772069446374,-168.0,0.000179,2]
[406678907,1772069446383,-173.91437885,0.000179,3]
[406678909,1772069446392,-434.37133882,0.000179,2]
[406678911,1772069446401,-20486.55936383,0.000179,2]
[406678913,1772069446410,-3829.31180515,0.000179,2]
[406678915,1772069446420,-604.78013772,0.000179,3]
[406678917,1772069446430,-4998.88692849,0.000179,2]
[406678919,1772069446439,-5939.7678909,0.000179,2]
[406678921,1772069446448,-561.38248504,0.000179,2]
[406678923,1772069446457,-309.29654756,0.0001791,2]
[406678925,1772069446467,-500.0,0.00017918,2]
[406678927,1772069446477,-150.0,0.00017942,2]
[406678928,1772069446486,-500.0,0.00017972,2]
[406678929,1772069446495,-150.0,0.00017974,2]
[406678930,1772069446504,-341.0,0.0001798,2]
[406678931,1772069446514,-150.0,0.0001799,2]
[406678932,1772069446523,-150.0,0.0001799,2]
[406678933,1772069446533,-215.0,0.0001799,2]
[406678934,1772069446542,-150.0,0.0001799,2]
[406678935,1772069446552,-150.0,0.0001799,2]
[406678936,1772069446561,-150.0,0.0001799,2]
[406678937,1772069446574,-150.0,0.0001799,2]
[406678938,1772069446584,-150.0,0.0001799,2]
[406678939,1772069446593,-150.0,0.0001799,2]
[406678940,1772069446603,-150.0,0.0001799,2]
[406678941,1772069446612,-150.135,0.0001799,2]
[406678943,1772069446624,-756.46924441,0.0001799,2]
[406678945,1772069446633,-306.45098113,0.0001799,2]
[406678947,1772069446643,-306.45098113,0.0001799,2]
[406678949,1772069446653,-500.0,0.00017997,2]
[406678950,1772069446663,-500.0,0.00017999,2]
[406678951,1772069446673,-500.0,0.00017999,2]
[406678952,1772069446682,-384.80531288,0.00017999,2]
[406678953,1772069446692,-300.0,0.00017999,2]
[406678954,1772069446702,-379.38237266,0.00017999,2]
[406678955,1772069446711,-500.0,0.00017999,20]
[406678956,1772069446720,-500.0,0.00017999,21]
[406678957,1772069446730,-500.0,0.00017999,21]
[406678958,1772069446739,-500.0,0.00017999,21]
[406678959,1772069446748,-350.75764164,0.00017999,21]
[406678960,1772069446758,-300.0,0.00017999,2]
[406678961,1772069446767,-25000.0,0.00017999,3]
[406678962,1772069446777,-300.0,0.00017999,2]
[406678963,1772069446788,-91209.83871968,0.00018,2]
[406678964,1772069446802,-418.00325842,0.00018,2]
[406678965,1772069446877,-359.04527717,0.00015643,2]
[406678971,1772069998808,1200.01,5.681e-05,2]
[406678972,1772069999029,1200.01,5.926e-05,2]
[406678973,1772069999312,1200.01,6.17e-05,2]
[406678974,1772069999511,1200.01,6.415e-05,2]
[406679038,1772070588212,-1200.01,6.66e-05,2]
[406679039,1772070588233,-250.0,6.66e-05,2]
[406679040,1772070588254,-208.0,6.66e-05,2]
[406679041,1772070588275,-250.0,6.681e-05,2]
[406679042,1772070588297,-242.0,6.766e-05,2]
[406679043,1772070588318,-1200.01,6.904e-05,2]
[406679044,1772070588339,-649.98,7.149e-05,2]
[406679045,1772070591155,-550.03,7.149e-05,2]
[406679047,1772070611685,-211.0,7.179e-05,2]
[406679048,1772070611705,-250.0,7.179e-05,2]
[406679049,1772070611724,-1539.0,7.179e-05,2]
[406679050,1772070614476,-2000.0,7.179e-05,2]
[406679051,1772070617075,-2000.0,7.179e-05,2]
[406679052,1772070619140,-15.43,7.179e-05,2]
[406679053,1772070619163,-1984.57,7.199e-05,2]
[406679054,1772070620132,-2000.0,7.199e-05,2]
[406679055,1772070621210,-1015.43,7.199e-05,2]
[406679056,1772070621231,-200.0,7.218e-05,2]
[406679066,1772070632251,-2018.5020399,7.294e-05,2]
[406679067,1772070632263,-2981.4979601,7.294e-05,2]
[406679068,1772070632272,-4056.37611173,7.294e-05,2]
[406679069,1772070632281,-250.0,7.326e-05,2]
[406679070,1772070632290,-1852.42,7.353e-05,2]
[406679071,1772070632299,-1200.0,7.393e-05,2]
[406679072,1772070632309,-1200.01,7.394e-05,2]
[406679073,1772070632320,-1600.0,7.576e-05,2]
[406679074,1772070632330,-912.96413456,7.638e-05,2]
[406679075,1772070632345,-287.04586544,7.638e-05,2]
[406679076,1772070632354,-349.31413456,7.883e-05,2]
[406679077,1772070632370,-850.69586544,7.883e-05,2]
[406679078,1772070632379,-9999.99,7.883e-05,2]
[406679079,1772070632388,-3667.16,7.883e-05,2]
[406679081,1772070632397,-999.99,7.883e-05,2]
[406679083,1772070632406,-150.99,7.883e-05,2]
[406679085,1772070632415,-299.99,7.883e-05,2]
[406679087,1772070632424,-9999.99,7.883e-05,2]
[406679090,1772070632433,-3505.32,7.883e-05,2]
[406679093,1772070632442,-5430.54,7.883e-05,2]
[406679096,1772070632451,-150.99,7.883e-05,2]
[406679099,1772070632460,-250.0,7.897e-05,2]
[406679101,1772070632469,-5000.0,7.897e-05,2]
[406679103,1772070632478,-205.53,8.1e-05,2]
[406679105,1772070632487,-500.0,8.119e-05,2]
[406679109,1772070632497,-1200.01,8.127e-05,2]
[406679111,1772070632507,-1720.0,8.171e-05,2]
[406679114,1772070632516,-5815.200891,8.178e-05,2]
[406679118,1772070632525,-660.85359805,8.188e-05,2]
[406679120,1772070632534,-1925.69,8.219e-05,2]
[406679122,1772070632543,-1200.01,8.372e-05,2]
[406679124,1772070632552,-653.0,8.373e-05,2]
[406679126,1772070632561,-206.0,8.389e-05,2]
[406679128,1772070632571,-150.75,8.4e-05,2]
[406679130,1772070632580,-1600.0,8.524e-05,2]
[406679132,1772070632589,-1200.01,8.617e-05,2]
[406679134,1772070632597,-1016.401,8.617e-05,2]
[406679135,1772070632607,-756.0,8.685e-05,2]
[406679136,1772070632616,-12516.14437374,8.694e-05,2]
[406679137,1772070632626,-264.24196608,8.7e-05,2]
[406679138,1772070632635,-500.0,8.7e-05,2]
[406679139,1772070632644,-184.96937625,8.7e-05,2]
[406679140,1772070632654,-500.0,8.7e-05,2]
[406679141,1772070632663,-500.0,8.7e-05,2]
[406679142,1772070632673,-500.0,8.7e-05,2]
[406679143,1772070632682,-500.0,8.7e-05,2]
[406679144,1772070632692,-500.0,8.7e-05,2]
[406679145,1772070632701,-500.0,8.7e-05,2]
[406679146,1772070632710,-500.0,8.7e-05,2]
[406679147,1772070632719,-500.0,8.7e-05,2]
[406679148,1772070632729,-500.0,8.7e-05,2]
[406679149,1772070632738,-500.0,8.7e-05,2]
[406679150,1772070632748,-500.0,8.7e-05,2]
[406679151,1772070632757,-500.0,8.7e-05,2]
[406679152,1772070632766,-500.0,8.7e-05,2]
[406679153,1772070632775,-500.0,8.7e-05,2]
[406679154,1772070632785,-459.693798,8.7e-05,2]
[406679155,1772070632794,-294.91025577,8.7e-05,2]
[406679156,1772070632803,-500.0,8.7e-05,2]
[406679157,1772070632812,-460.34861645,8.7e-05,2]
[406679158,1772070632821,-500.0,8.7e-05,2]
[406679159,1772070632831,-500.0,8.7e-05,2]
[406679160,1772070632841,-500.0,8.7e-05,2]
[406679161,1772070632850,-500.0,8.7e-05,2]
[406679162,1772070632859,-911016.76069918,8.701e-05,2]
[406679163,1772070632871,-159240.95665615,8.701e-05,2]
[406679164,1772070632883,-238290.88974151,8.701e-05,2]
[406679165,1772070632896,-203728.72099766,8.701e-05,2]
[406679166,1772070632907,-1254.41808677,8.701e-05,2]
[406679172,1772070638159,-14087.60567993,8.701e-05,2]
[406679173,1772070638214,-1164.20361154,8.701e-05,2]
[406679174,1772070638226,-64775.76866642,8.701e-05,2]
[406679175,1772070638238,-3150.75,8.701e-05,2]
[406679176,1772070638321,-489.55517555,8.701e-05,2]
[406679177,1772070638332,-316.60387393,8.701e-05,2]
[406679178,1772070638344,-879.53530119,8.701e-05,2]
[406679179,1772070638356,-534.74842781,8.701e-05,2]
[406679180,1772070638368,-1323.45921772,8.701e-05,2]
[406679181,1772070638391,-799.8506,8.701e-05,2]
[406679182,1772070638402,-1000.51193,8.701e-05,2]
[406679183,1772070638413,-431.69598331,8.701e-05,2]
[406679184,1772070638424,-1167.46477553,8.701e-05,2]
[406679185,1772070638448,-1553.54803427,8.701e-05,2]
[406679341,1772070640328,-620.12513096,8.701e-05,2]
[406679342,1772070640382,-333.26194966,8.701e-05,2]
[406679343,1772070640436,-265.96,8.701e-05,2]
[406679344,1772070640447,-265.1286,8.701e-05,2]
[406679345,1772070640698,-506.37642362,8.701e-05,2]
[406679346,1772070640710,-288.472427,8.701e-05,2]
[406679347,1772070640910,-169450.26088474,8.701e-05,2]
[406679362,1772070643667,-539.44516753,8.701e-05,2]
[406679365,1772070643681,-440.24170691,8.701e-05,2]
[406679367,1772070643694,-43808.61023323,8.701e-05,2]
[406679379,1772070646257,-410.8,8.701e-05,2]
[406679380,1772070646316,-456.24499999,8.701e-05,2]
[406679392,1772070666423,166.0,8.701e-05,3]
[406679393,1772070725070,166.0,8.701e-05,3]
[406679395,1772070784925,166.0,8.701e-05,3]